bitfinex/quotes_ETHUSD_20250214
["timestamp","ask_amount","ask_price","bid_price","bid_amount"]
[1739509292649,5.87,2705.3,2705.2,0.09802737]
[1739509293790,5.87,2705.3,2705.0,4.51257]
[1739509294007,5.87,2705.3,2705.2,0.09785052]
[1739509294195,5.87,2705.3,2705.1,0.09787724]
[1739509294516,5.87,2705.3,2705.2,0.09785052]
[1739509294900,5.87,2705.3,2705.0,4.51257]
[1739509295101,5.87,2705.3,2705.2,0.09785052]
[1739509295303,5.87,2705.3,2705.1,3.79458724]
[1739509295494,5.87,2705.3,2705.2,0.09785052]
[1739509296915,5.87,2705.3,2705.0,8.20934]
[1739509297122,5.87,2705.3,2705.2,3.7940326]
[1739509298384,5.87,2705.3,2705.2,0.0974526]
[1739509300739,5.87,2705.3,2705.2,3.7940326]
[1739509305042,0.55,2705.3,2705.2,3.7940326]
[1739509317338,1.3527,2705.3,2705.2,0.0974526]
[1739509317544,1.3527,2705.3,2704.9,3.69686]
[1739509318746,1.0707,2705.0,2704.6,3.6974]
[1739509318982,1.0707,2705.0,2704.7,0.09075056]
[1739509319157,1.0707,2705.0,2704.8,3.69712]
[1739509319358,1.0707,2705.0,2704.9,0.0907097]
[1739509319554,1.0707,2705.0,2704.6,3.69727]
[1739509319774,1.0707,2705.0,2704.7,3.78799314]
[1739509321442,1.0707,2705.0,2704.7,3.78798314]
[1739509321981,1.0707,2705.0,2704.8,3.69709]
[1739509322155,1.0707,2705.0,2704.9,0.0908418]
[1739509323830,6.134,2705.2,2704.9,3.7878318]
[1739509324033,6.134,2705.2,2704.9,0.0908418]
[1739509324202,6.7742,2705.2,2704.9,0.0908418]
[1739509326993,6.7742,2705.2,2704.9,3.7878318]
[1739509328140,5.04785,2705.0,2704.9,0.0908418]
[1739509328544,4.51519,2704.9,2704.3,3.69776]
[1739509328920,0.8182,2704.9,2704.4,3.78568205]
[1739509329304,0.8182,2704.9,2704.4,3.78561205]
[1739509329742,4.51521,2704.9,2704.4,3.78561205]
[1739509330152,1.3682,2704.8,2704.4,0.08801205]
[1739509330306,3.69754,2704.5,2704.4,0.08801205]
[1739509330504,3.69754,2704.5,2703.9,2.72224]
[1739509330505,3.69791,2704.3,2703.9,2.72224]
[1739509330844,9.01791,2704.3,2704.0,0.08149797]
[1739509331045,5.32,2704.3,2704.0,0.08149797]
[1739509332554,0.8329,2704.2,2704.0,0.08149797]
[1739509334846,9.85093,2704.2,2704.0,0.08149797]
[1739509335056,3.69808,2704.1,2704.0,0.08149797]
[1739509336342,9.85093,2704.2,2704.0,0.08149797]
[1739509336511,3.69808,2704.1,2704.0,0.08149797]
[1739509336716,9.85093,2704.2,2704.0,0.08149797]
[1739509337066,11.3336337,2704.2,2704.0,0.08149797]
[1739509337560,3.69808,2704.1,2704.0,0.08149797]
[1739509338224,4.24808,2704.1,2704.0,0.08149797]
[1739509338393,5.04648,2704.1,2704.0,0.08149797]
[1739509339188,10.37398,2704.1,2704.0,0.08149797]
[1739509339403,0.5575,2704.0,2703.9,2.72224]
[1739509339543,5.05412,2704.0,2703.9,2.72224]
[1739509340941,8.23599921,2704.0,2703.9,2.72224]
[1739509342955,8.22849921,2704.0,2703.9,2.72224]
[1739509343207,6.96606885,2704.0,2703.9,2.72224]
[1739509343567,12.28606885,2704.0,2703.9,2.72224]
[1739509345571,8.58784885,2704.0,2703.9,2.72224]
[1739509345900,8.84834885,2704.0,2703.9,2.72224]
[1739509346053,5.32,2704.0,2703.9,2.72224]
[1739509346250,5.32,2704.0,2703.9,6.4206]
[1739509346465,5.32,2704.0,2703.9,6.50335384]
[1739509346685,5.32,2704.0,2703.9,2.80499384]
[1739509347903,5.32,2704.2,2703.9,2.80499384]
[1739509348229,5.32,2704.2,2703.9,6.50333384]
[1739509349808,5.32,2704.2,2703.9,2.80499384]
[1739509350181,5.32,2704.2,2703.9,6.50334384]
[1739509350387,5.32,2704.2,2704.0,3.69811]
[1739509350584,5.32,2704.2,2704.1,0.08261254]
[1739509350905,5.32,2704.2,2704.1,3.78069254]
[1739509352116,5.32,2704.4,2704.2,4.50927]
[1739509352488,5.32,2704.4,2704.3,0.08240227]
[1739509354623,10.714412,2704.4,2703.9,3.54004]
[1739509354856,9.81267,2704.4,2704.3,0.08190683]
[1739509355031,9.81267,2704.4,2703.9,7.23839]
[1739509355332,9.81267,2704.4,2704.3,0.08190683]
[1739509355485,9.81267,2704.4,2703.9,3.54004]
[1739509355686,9.81267,2704.4,2704.3,0.08190683]
[1739509355913,9.81267,2704.4,2703.9,7.23836]
[1739509355914,11.163679,2704.4,2703.9,7.23836]
[1739509356118,9.81267,2704.4,2704.3,0.08190683]
[1739509356283,9.81267,2704.4,2703.9,7.23836]
[1739509356649,3.69781,2704.3,2703.9,3.54004]
[1739509356787,3.69781,2704.3,2704.0,0.08198703]
[1739509357545,7.39571,2704.3,2704.0,0.08198703]
[1739509357748,3.69781,2704.3,2704.0,0.08198703]
[1739509358411,3.69803,2704.2,2704.0,0.08198703]
[1739509358750,3.69795,2704.2,2704.0,0.08198703]
[1739509358919,3.69781,2704.3,2704.0,0.08198703]
[1739509359232,4.516851,2704.3,2704.0,0.08198703]
[1739509359437,3.69807,2704.2,2704.0,0.08198703]
[1739509359614,4.516851,2704.3,2704.0,0.08198703]
[1739509359803,8.214741,2704.3,2704.0,0.08198703]
[1739509359997,3.69795,2704.2,2704.0,0.08198703]
[1739509360921,4.516851,2704.3,2704.0,0.08198703]
[1739509361199,3.69795,2704.2,2704.0,0.08198703]
[1739509361399,4.516851,2704.3,2704.0,0.08198703]
[1739509361599,8.214761,2704.3,2704.0,0.08198703]
[1739509361801,3.69797,2704.2,2704.0,0.08198703]
[1739509362839,4.516851,2704.3,2704.0,0.08198703]
[1739509363132,8.214751,2704.3,2704.0,0.08198703]
[1739509363352,0.795,2704.4,2704.0,0.08198703]
[1739509363353,0.9009751,2704.2,2704.0,0.08198703]
[1739509363549,3.69808,2704.1,2704.0,0.08198703]
[1739509363739,4.49276,2704.4,2704.0,0.08198703]
[1739509364752,3.69804,2704.2,2704.0,0.08198703]
[1739509365145,3.69788,2704.3,2704.0,0.08198703]
[1739509365315,3.698,2704.2,2704.0,0.08198703]
[1739509367415,9.018,2704.2,2704.0,0.08198703]
[1739509367850,6.671074,2704.2,2704.0,0.08198703]
[1739509368152,5.32,2704.2,2704.0,0.08198703]
[1739509369696,5.32,2704.2,2704.0,3.78020703]
[1739509371292,5.32,2704.2,2704.1,3.69808]
[1739509371643,5.32,2704.2,2704.1,3.78030368]
[1739509372681,5.32,2704.2,2704.1,0.08222368]
[1739509373200,5.32,2704.2,2703.9,10.11877]
[1739509373378,5.32,2704.4,2704.1,0.08222368]
[1739509373541,6.352156,2704.4,2704.0,0.08225041]
[1739509373747,6.352156,2704.4,2704.2,0.08219694]
[1739509373944,6.352156,2704.4,2704.1,0.08222368]
[1739509374262,6.352156,2704.4,2704.2,0.08219694]
[1739509374648,6.352156,2704.4,2703.9,10.11877]
[1739509374649,6.352156,2704.4,2704.0,3.69822]
[1739509374849,6.352156,2704.4,2704.3,0.08217021]
[1739509375077,6.352156,2704.4,2704.0,3.69822]
[1739509375278,5.32,2704.4,2704.3,0.08217021]
[1739509375460,5.32,2704.4,2704.0,3.69822]
[1739509375682,5.32,2704.4,2704.3,0.08217021]
[1739509375900,5.32,2704.4,2704.0,3.69822]
[1739509376107,5.32,2704.4,2704.3,0.08217021]
[1739509376323,6.352145,2704.4,2704.0,3.69822]
[1739509376519,5.32,2704.4,2704.3,0.08217021]
[1739509376724,5.32,2704.4,2704.0,3.69822]
[1739509377233,5.32,2704.4,2704.1,0.08222368]
[1739509377572,5.32,2704.4,2704.2,0.7508]
[1739509377777,5.32,2704.4,2704.3,0.08217021]
[1739509378374,5.32,2704.4,2704.3,3.77998021]
[1739509379380,5.32,2704.7,2704.5,3.69752]
[1739509379599,5.32,2704.7,2704.6,0.08200849]
[1739509379775,5.32,2704.7,2704.6,3.77940849]
[1739509380681,5.32,2704.7,2704.6,0.08200849]
[1739509381623,6.248501,2704.7,2704.6,0.08200849]
[1739509381816,6.248501,2704.7,2704.3,3.69772]
[1739509382116,6.248501,2704.7,2704.4,0.0817735]
[1739509382281,6.248501,2704.7,2704.4,3.7793635]
[1739509382622,5.32,2704.7,2704.4,3.7793635]
[1739509382808,5.32,2704.7,2704.4,0.0817735]
[1739509383780,5.32,2704.7,2704.5,3.6975]
[1739509384127,5.32,2704.7,2704.6,0.0817514]
[1739509385744,5.32,2704.7,2704.4,3.6976]
[1739509386069,5.32,2704.7,2704.5,0.08178439]
[1739509386774,5.8788,2704.7,2704.5,0.08178439]
[1739509386971,5.8788,2704.7,2704.1,3.69802]
[1739509387187,0.7991,2704.5,2704.1,3.69802]
[1739509387803,0.7991,2704.5,2704.1,3.69799]
[1739509389012,9.80708,2704.4,2703.9,2.72224]
[1739509389167,1.350462,2704.3,2703.9,2.72224]
[1739509390705,6.1093,2704.4,2704.0,4.47341]
[1739509390706,5.32,2704.4,2704.0,4.47341]
[1739509391379,5.32,2704.4,2704.2,3.69786]
[1739509391807,5.32,2704.4,2704.1,3.69807]
[1739509392106,5.32,2704.4,2704.1,3.69799]
[1739509393768,5.32,2704.4,2704.2,3.6979]
[1739509393968,5.32,2704.4,2704.1,3.69799]
[1739509393969,5.32,2704.4,2704.1,7.396]
[1739509394220,5.32,2704.5,2704.1,7.396]
[1739509394384,6.411544,2704.5,2704.1,7.396]
[1739509394743,6.411544,2704.5,2704.2,3.69789]
[1739509396425,6.411544,2704.5,2704.0,0.7753]
[1739509396601,6.411544,2704.5,2704.1,3.69805]
[1739509397117,6.411544,2704.5,2704.2,0.08212168]
[1739509397317,0.7750844,2704.4,2704.2,0.08212168]
[1739509398571,0.7750844,2704.4,2704.2,3.77996168]
[1739509398836,6.411544,2704.5,2704.2,3.77996168]
[1739509399130,6.411544,2704.5,2704.2,0.08212168]
[1739509399625,6.411544,2704.5,2704.2,3.77998168]
[1739509400912,6.411544,2704.5,2704.2,0.08212168]
[1739509403617,5.32,2704.5,2704.2,0.08212168]
[1739509404494,0.7754,2704.3,2704.2,0.08212168]
[1739509404696,7.41587915,2704.3,2704.2,0.08212168]
[1739509404917,0.55,2704.2,2703.9,2.72224]
[1739509405701,0.55,2704.2,2703.9,6.42057]
[1739509407101,0.55,2704.2,2703.9,2.72224]
[1739509407438,5.505336,2704.2,2703.9,2.72224]
[1739509408750,1.807366,2704.2,2703.9,2.72224]
[1739509409049,5.32,2704.1,2703.9,2.72224]
[1739509412053,5.32,2704.1,2703.9,6.42051]
[1739509412262,5.32,2704.1,2704.0,0.08231312]
[1739509412610,5.32,2704.1,2704.0,0.91261312]
[1739509413660,5.32,2704.1,2704.0,4.61083312]
[1739509413843,5.32,2704.1,2704.0,0.91261312]
[1739509415061,5.32,2704.2,2704.0,0.91261312]
[1739509417625,5.32,2704.2,2704.0,4.61082312]
[1739509417818,5.32,2704.2,2704.1,3.69808]
[1739509418237,5.32,2704.2,2704.1,3.78034758]
[1739509420881,5.32,2704.3,2704.1,3.78034758]
[1739509423757,5.32,2704.3,2704.1,0.08226758]
[1739509426891,5.32,2704.4,2704.1,0.08226758]
[1739509434597,9.01775,2704.4,2704.1,0.08226758]
[1739509434810,10.451356,2704.4,2704.1,0.08226758]
[1739509435112,3.69795,2704.2,2704.1,0.08226758]
[1739509435468,3.69795,2704.2,2703.9,2.72224]
[1739509435664,3.69795,2704.2,2704.1,0.08198537]
[1739509436126,3.69795,2704.2,2703.9,2.72224]
[1739509436400,3.69795,2704.2,2704.1,0.08198537]
[1739509436566,3.69795,2704.2,2703.9,2.72224]
[1739509436760,3.69795,2704.2,2704.1,0.08198537]
[1739509436954,3.69795,2704.2,2703.9,2.72224]
[1739509437456,3.69795,2704.2,2704.0,0.0820121]
[1739509438674,9.01795,2704.2,2704.0,0.0820121]
[1739509439469,10.4328806,2704.2,2704.0,0.0820121]
[1739509440482,0.7526,2704.1,2704.0,0.0820121]
[1739509440681,10.4328806,2704.2,2704.0,0.0820121]
[1739509441873,14.1309106,2704.2,2704.0,0.0820121]
[1739509442073,10.4328806,2704.2,2704.0,0.0820121]
[1739509442268,1.11854806,2704.1,2704.0,0.0820121]
[1739509443904,4.81662806,2704.1,2704.0,0.0820121]
[1739509444211,5.36662806,2704.1,2704.0,0.0820121]
[1739509444409,6.14462806,2704.1,2704.0,0.0820121]
[1739509444909,7.76654806,2704.1,2704.0,0.0820121]
[1739509445610,11.46462806,2704.1,2704.0,0.0820121]
[1739509447732,11.46462806,2704.1,2703.9,2.72224]
[1739509447909,8.36023307,2704.0,2703.9,2.72224]
[1739509448309,15.91823307,2704.0,2703.9,2.72224]
[1739509448495,25.17923307,2704.0,2703.9,2.72224]
[1739509448712,26.71755507,2704.0,2703.9,2.72224]
[1739509449245,26.71755507,2704.0,2702.4,1.538322]
[1739509449246,3.69979,2702.9,2702.6,0.8276]
[1739509449607,3.6996,2703.0,2702.6,0.8276]
[1739509450351,9.0196,2703.0,2702.6,0.8276]
[1739509450548,4.60175,2702.9,2702.6,0.8276]
[1739509450858,4.60175,2702.9,2702.4,0.7841]
[1739509452013,3.69995,2702.8,2702.4,0.7841]
[1739509452209,0.55,2702.7,2702.2,0.8265]
[1739509452415,5.32,2702.6,2702.2,0.8265]
[1739509452914,5.98291,2702.6,2702.1,3.70076]
[1739509454248,0.7944,2702.5,2702.1,3.70076]
[1739509455183,0.7944,2702.5,2701.9,3.70102]
[1739509455480,6.1144,2702.5,2702.0,3.7009]
[1739509456653,6.1144,2702.5,2702.0,3.70085]
[1739509456847,9.81468,2702.5,2702.0,3.70085]
[1739509457080,9.81468,2702.5,2702.1,0.08475432]
[1739509457478,0.55,2702.4,2702.1,0.08475432]
[1739509457783,0.817,2702.4,2701.9,3.70107]
[1739509457929,0.817,2702.4,2702.2,0.08485313]
[1739509458133,0.817,2702.4,2701.9,3.70107]
[1739509458374,0.817,2702.4,2702.0,0.08490668]
[1739509458585,2.088235,2702.4,2702.0,0.08490668]
[1739509459105,5.788675,2702.4,2702.0,0.08490668]
[1739509459411,0.0075,2702.3,2702.0,0.08490668]
[1739509459608,5.32,2702.2,2701.8,3.70121]
[1739509459769,5.32,2702.2,2702.1,0.08487991]
[1739509459967,5.32,2702.2,2701.9,3.70106]
[1739509460186,5.32,2702.2,2702.1,0.08487991]
[1739509460379,5.32,2702.2,2701.9,3.70106]
[1739509460625,5.32,2702.2,2702.1,0.08487991]
[1739509460785,5.32,2702.2,2701.9,3.70102]
[1739509460985,5.32,2702.2,2702.1,0.08487991]
[1739509461178,5.32,2702.2,2701.9,3.70102]
[1739509461428,5.32,2702.2,2702.1,0.08487991]
[1739509461584,5.32,2702.2,2701.9,3.70102]
[1739509461770,5.32,2702.2,2702.1,0.08487991]
[1739509462104,6.4308675,2702.2,2701.8,3.70122]
[1739509462283,6.4308675,2702.2,2702.1,0.08487991]
[1739509462483,6.4308675,2702.2,2701.7,4.4595]
[1739509462688,6.4308675,2702.2,2701.7,8.16079]
[1739509462886,5.32,2702.2,2701.8,3.78619024]
[1739509464119,5.32,2702.2,2701.8,0.08496024]
[1739509464471,5.32,2702.2,2701.7,4.45948]
[1739509464828,5.32,2702.2,2701.8,3.78611024]
[1739509465405,5.32,2702.3,2701.8,3.78611024]
[1739509466471,5.32,2702.3,2701.8,0.08496024]
[1739509466688,5.32,2702.3,2701.9,3.70107]
[1739509467221,5.32,2702.3,2702.0,0.08490668]
[1739509468224,5.32,2702.3,2702.1,0.08514366]
[1739509468425,5.32,2702.3,2701.9,3.70107]
[1739509468623,5.87,2702.3,2702.2,0.08524877]
[1739509468800,7.1153065,2702.3,2701.9,3.70107]
[1739509468993,7.1153065,2702.3,2702.2,0.08524877]
[1739509469192,7.1153065,2702.3,2701.9,3.70107]
[1739509469408,7.1153065,2702.3,2702.2,0.08524877]
[1739509469723,7.1153065,2702.3,2701.9,3.70107]
[1739509470208,7.1153065,2702.3,2702.0,0.08530232]
[1739509471733,5.588,2702.3,2702.2,3.70068]
[1739509471894,5.588,2702.3,2702.0,0.08530232]
[1739509472229,5.588,2702.3,2702.1,0.08527554]
[1739509473175,5.588,2702.3,2701.9,4.5247]
[1739509473441,5.588,2702.3,2702.2,0.08521737]
[1739509473583,5.588,2702.3,2701.9,4.5247]
[1739509473775,5.588,2702.3,2702.2,0.085142]
[1739509473982,5.588,2702.3,2701.9,4.5247]
[1739509473983,5.32,2702.3,2701.9,4.5247]
[1739509474195,5.32,2702.3,2702.2,0.085142]
[1739509474528,5.32,2702.3,2701.9,4.5247]
[1739509474735,6.851484,2702.3,2702.2,0.08515456]
[1739509475027,11.367734,2702.3,2702.2,0.08516084]
[1739509475228,11.367734,2702.3,2701.7,7.40257]
[1739509475430,11.367734,2702.3,2702.2,0.08516084]
[1739509475575,11.367734,2702.3,2701.7,3.70128]
[1739509475775,11.367734,2702.3,2702.2,0.08516084]
[1739509475976,11.367734,2702.3,2701.7,3.70128]
[1739509476194,1.68769239,2702.2,2701.7,3.70128]
[1739509477032,6.6857,2702.3,2701.7,3.70128]
[1739509477432,6.6857,2702.3,2701.9,3.70109]
[1739509478867,6.1357,2702.3,2701.9,3.70109]
[1739509479545,5.32,2702.3,2702.0,0.7516]
[1739509479742,5.32,2702.3,2702.0,4.45254]
[1739509480044,5.32,2702.3,2702.1,3.70082]
[1739509481109,5.32,2702.3,2702.0,4.45253]
[1739509481309,5.32,2702.3,2702.1,3.7008]
[1739509481812,5.32,2702.3,2702.0,4.45248]
[1739509482014,5.32,2702.3,2702.1,3.7008]
[1739509483800,5.32,2702.3,2702.0,0.7516]
[1739509484001,5.32,2702.3,2702.0,4.45256]
[1739509484531,5.32,2702.3,2702.1,3.70079]
[1739509485465,5.32,2702.3,2702.1,3.70071]
[1739509485611,5.32,2702.3,2702.2,3.70068]
[1739509486003,5.32,2702.3,2702.0,4.45243]
[1739509486650,5.32,2702.3,2702.0,0.7516]
[1739509486795,5.32,2702.3,2702.1,3.70072]
[1739509487004,5.32,2702.3,2702.1,3.78587623]
[1739509488748,1.46158,2702.3,2702.1,0.08515623]
[1739509488991,1.46158,2702.3,2701.7,3.7013]
[1739509489176,2.01158,2702.3,2702.2,0.0850227]
[1739509489363,2.01158,2702.3,2701.9,0.7766]
[1739509489569,1.0778,2702.5,2702.2,3.7006]
[1739509489777,0.55,2702.4,2702.3,0.08500221]
[1739509490101,0.55,2702.4,2702.2,3.7006]
[1739509490254,0.55,2702.4,2702.3,0.08500221]
[1739509490454,0.55,2702.4,2702.2,3.7006]
[1739509490654,0.55,2702.4,2702.3,0.08500221]
[1739509490906,0.55,2702.4,2702.1,3.70077]
[1739509491201,0.55,2702.4,2702.2,0.08502898]
[1739509495215,5.32,2702.3,2702.2,0.08502898]
[1739509495812,6.81508,2702.3,2702.2,0.08502898]
[1739509496123,5.32,2702.3,2702.0,8.17125]
[1739509496448,5.32,2702.3,2702.1,0.08491131]
[1739509497611,5.32,2702.3,2702.1,3.78570131]
[1739509499211,5.32,2702.3,2702.1,0.08491131]
[1739509499415,6.01373,2702.3,2702.1,0.08491131]
[1739509502827,6.01373,2702.3,2701.9,5.24179987]
[1739509503136,6.01373,2702.3,2702.2,0.08491594]
[1739509503260,6.01373,2702.3,2702.0,3.70094]
[1739509503464,5.32,2702.3,2702.2,0.08491594]
[1739509503665,5.32,2702.3,2702.1,3.70081]
[1739509504032,5.32,2702.3,2702.2,3.7855771]
[1739509504763,5.32,2702.4,2702.3,3.70055]
[1739509504965,5.32,2702.4,2702.3,5.32617019]
[1739509505366,5.32,2702.4,2702.3,6.30518521]
[1739509506197,5.32,2702.4,2702.3,5.32617019]
[1739509509626,5.32,2702.4,2702.3,1.62562019]
[1739509509916,5.32,2702.4,2702.3,0.08487032]
[1739509510119,0.7869,2702.4,2702.3,0.08487032]
[1739509510339,0.7869,2702.4,2702.2,3.70059]
[1739509510623,0.7869,2702.4,2702.3,3.78522565]
[1739509511154,5.32,2702.6,2702.4,3.70029]
[1739509511295,0.61069,2702.5,2702.4,3.70029]
[1739509512423,0.61069,2702.5,2702.2,3.70068]
[1739509512917,0.8176,2702.4,2702.2,3.70068]
[1739509513119,0.8176,2702.4,2702.1,5.24149987]
[1739509513321,0.8176,2702.4,2702.1,1.54074987]
[1739509513530,0.8176,2702.4,2702.3,3.70055]
[1739509514909,0.8176,2702.4,2702.2,3.70059]
[1739509515394,0.8176,2702.4,2702.3,3.70055]
[1739509515620,0.61069,2702.5,2702.3,3.70055]
[1739509515830,0.61069,2702.5,2702.2,3.70059]
[1739509515975,0.61069,2702.5,2702.4,3.70041]
[1739509516174,0.8286,2702.6,2702.4,3.70041]
[1739509516931,1.3786,2702.8,2702.5,3.70026]
[1739509517090,5.32,2702.7,2702.5,3.78488211]
[1739509517290,5.587,2702.7,2702.5,3.78488211]
[1739509518373,5.587,2702.7,2702.6,3.70014]
[1739509518631,5.587,2702.7,2702.6,3.78473534]
[1739509518832,5.587,2702.7,2702.6,0.08459534]
[1739509518972,5.32,2702.7,2702.6,3.78473534]
[1739509519228,5.32,2702.7,2702.6,4.55193534]
[1739509521828,5.32,2702.9,2702.6,4.55193534]
[1739509522277,5.32,2702.9,2702.8,3.69986]
[1739509522684,5.32,2702.9,2702.8,3.78412559]
[1739509524987,5.32,2703.0,2702.8,3.78412559]
[1739509527384,5.32,2703.0,2702.9,3.69972]
[1739509527605,5.32,2703.0,2702.9,5.32472753]
[1739509527767,5.32,2703.0,2702.9,6.11332753]
[1739509527973,5.32,2703.0,2702.9,7.09464528]
[1739509530207,5.32,2703.0,2702.9,6.11332753]
[1739509530915,5.32,2703.3,2703.2,3.69931]
[1739509531109,5.32,2703.3,2703.2,5.24005987]
[1739509531427,5.32,2703.3,2703.2,5.32423726]
[1739509532135,5.32,2703.3,2703.2,5.47342933]
[1739509536928,5.32,2703.4,2703.2,5.47342933]
[1739509537481,5.32,2703.4,2703.2,1.77411933]
[1739509537677,6.3184717,2703.4,2703.2,1.77411933]
[1739509538698,6.3184717,2703.4,2703.2,5.47342933]
[1739509540228,6.3184717,2703.4,2703.3,3.69918]
[1739509540414,5.32,2703.4,2703.3,0.23269694]
[1739509540615,5.32,2703.4,2703.2,5.24005987]
[1739509540789,5.32,2703.4,2703.3,0.23269694]
[1739509540990,5.32,2703.4,2703.2,5.24005987]
[1739509541296,5.32,2703.4,2703.3,0.23269694]
[1739509541755,5.32,2703.4,2703.2,8.93922987]
[1739509542113,5.32,2703.4,2703.3,0.23269694]
[1739509542930,5.32,2703.4,2703.3,3.69918]
[1739509543091,5.32,2703.4,2703.3,3.93187694]
[1739509543294,5.32,2703.4,2703.3,0.23269694]
[1739509543590,5.32,2703.4,2703.2,5.23995987]
[1739509543817,5.32,2703.4,2703.3,0.23269694]
[1739509544018,5.32,2703.4,2703.2,5.23995987]
[1739509544230,5.32,2703.4,2703.3,0.23269694]
[1739509544417,5.32,2703.4,2703.3,3.69918]
[1739509544832,5.32,2703.4,2703.3,3.93187694]
[1739509545194,5.32,2703.4,2703.3,0.23269694]
[1739509545520,5.32,2703.4,2703.2,5.24003987]
[1739509545726,5.32,2703.4,2703.3,0.23269694]
[1739509546038,5.32,2703.4,2703.2,8.93927987]
[1739509546246,5.32,2703.4,2703.3,0.23269694]
[1739509546538,5.32,2703.4,2703.2,8.93927987]
[1739509546700,5.32,2703.4,2703.3,0.23269694]
[1739509547116,5.32,2703.4,2703.2,8.93920987]
[1739509547319,5.32,2703.4,2703.3,0.23269694]
[1739509547644,5.32,2703.4,2703.2,8.93920987]
[1739509547800,5.32,2703.4,2703.3,0.23269694]
[1739509548141,5.32,2703.4,2703.2,8.93920987]
[1739509548342,5.32,2703.4,2703.3,0.23269694]
[1739509548516,6.3184717,2703.4,2703.3,0.23269694]
[1739509548693,6.3184717,2703.4,2703.2,5.23996987]
[1739509548897,6.3184717,2703.4,2703.3,0.23269694]
[1739509549344,6.3184717,2703.4,2703.2,5.23996987]
[1739509549545,6.3184717,2703.4,2703.3,0.23269694]
[1739509549841,6.8684717,2703.4,2703.2,1.54074987]
[1739509550051,0.8226,2703.2,2703.1,3.69944]
[1739509552959,0.8226,2703.2,2703.0,5.24031987]
[1739509553132,0.8226,2703.2,2703.0,3.69957]
[1739509553304,0.8226,2703.2,2702.8,1.54074987]
[1739509553806,0.8226,2703.2,2702.8,5.24058987]
[1739509554008,0.19003589,2703.1,2702.8,5.24058987]
[1739509554343,0.19003589,2703.1,2702.8,1.54074987]
[1739509554720,5.32,2703.0,2702.8,1.54074987]
[1739509556144,0.55,2702.8,2702.6,1.54074987]
[1739509556317,5.32,2702.7,2702.6,1.54074987]
[1739509556518,0.7727,2702.6,2702.4,1.54074987]
[1739509558532,6.3597,2702.6,2702.2,5.24141987]
[1739509559264,6.3597,2702.6,2702.2,1.54074987]
[1739509559749,0.806,2702.4,2702.2,1.54074987]
[1739509560306,1.815314,2702.4,2702.0,1.54074987]
[1739509560538,5.32,2702.3,2701.8,2.35944987]
[1739509560743,5.32,2702.3,2701.8,1.54074987]
[1739509561241,0.7512,2702.1,2701.8,1.54074987]
[1739509561441,0.7512,2702.1,2701.7,3.70129]
[1739509561641,5.32,2702.0,2701.6,1.54074987]
[1739509562139,5.32,2702.0,2701.7,3.92661053]
[1739509562791,5.32,2702.0,2701.7,0.22530053]
[1739509564329,5.32,2702.0,2701.5,3.70154]
[1739509564586,5.32,2702.0,2701.8,0.22526823]
[1739509564803,0.60712,2701.9,2701.5,3.70154]
[1739509566064,0.267,2701.7,2701.4,3.70673]
[1739509566479,0.267,2701.7,2701.4,0.005]
[1739509567274,0.79749032,2701.7,2701.4,0.005]
[1739509567603,5.32,2701.6,2701.4,0.005]
[1739509568409,9.02151,2701.6,2701.4,0.005]
[1739509568912,5.32,2701.6,2701.4,0.005]
[1739509569783,9.02154,2701.6,2701.4,0.005]
[1739509570000,0.8076,2701.5,2701.4,0.005]
[1739509572609,6.1276,2701.5,2701.4,0.005]
[1739509576218,6.6776,2701.5,2701.4,0.005]
[1739509577214,6.6776,2701.5,2701.4,0.21686784]
[1739509578920,10.37924,2701.5,2701.4,0.21686784]
[1739509579107,12.01049384,2701.5,2701.4,0.21686784]
[1739509579304,8.30885384,2701.5,2701.4,0.21686784]
[1739509581129,12.01049384,2701.5,2701.4,0.21686784]
[1739509582273,12.01799384,2701.5,2701.4,0.21686784]
[1739509582469,23.51849384,2701.5,2701.4,0.005]
[1739509583134,14.24849384,2701.5,2701.4,0.005]
[1739509584974,14.24849384,2701.5,2701.4,0.2538]
[1739509585764,15.79063697,2701.5,2701.4,0.2538]
[1739509596823,8.31635384,2701.5,2701.4,0.2538]
[1739509597026,5.32,2701.5,2701.4,0.2538]
[1739509597324,5.587,2701.5,2701.4,0.46621458]
[1739509597821,5.587,2701.5,2701.4,4.16799458]
[1739509598184,5.32,2701.5,2701.4,4.16799458]
[1739509598356,5.32,2701.5,2701.4,0.46621458]
[1739509601502,5.32,2701.5,2701.4,4.16799458]
[1739509606258,5.32,2701.5,2701.4,0.46621458]
[1739509606426,5.8787,2701.5,2701.4,0.46621458]
[1739509607007,5.32,2701.5,2701.4,0.46621458]
[1739509620063,5.32,2701.5,2701.4,4.16799458]
[1739509622063,5.32,2701.5,2701.4,4.97029458]
[1739509622502,5.32,2701.5,2701.4,1.26851458]
[1739509623415,5.32,2701.5,2701.4,4.97029458]
[1739509625321,5.32,2701.5,2701.4,1.26851458]
[1739509625972,5.32,2701.6,2701.4,4.97029458]
[1739509626377,5.32,2701.6,2701.5,3.70164]
[1739509626610,5.32,2701.6,2701.5,5.45614025]
[1739509627678,5.32,2701.9,2701.8,3.70123]
[1739509627872,5.32,2701.9,2701.8,4.51673]
[1739509628074,5.32,2701.9,2701.8,4.72892734]
[1739509630633,5.32,2702.2,2702.1,3.70082]
[1739509630808,0.267,2702.4,2702.2,4.48308]
[1739509630809,5.32,2702.3,2702.2,4.48308]
[1739509631208,5.32,2702.3,2702.2,4.69514814]
[1739509632084,5.32,2702.3,2702.2,0.21206814]